[Event "GrandPrix_29.05"]
[Site "Chess.com"]
[Date "2020.05.29"]
[Round "8"]
[White "Nikame"]
[Black "GadimbayliA"]
[Result "0-1"]
[WhiteElo "2362"]
[BlackElo "2524"]
[TimeControl "600+2"]
[EndTime "13:05:30 PDT"]
[Termination "GadimbayliA won by resignation"]

1. d4 {[%clk 0:10:00.8]} 1... d5 {[%clk 0:10:01]} 2. Bg5 {[%clk 0:09:59.2]} 2...
h6 {[%clk 0:10:00.7]} 3. Bh4 {[%clk 0:09:59.1]} 3... c6 {[%clk 0:10:02]} 4. e3
{[%clk 0:09:59.8]} 4... Qb6 {[%clk 0:10:03.5]} 5. Qc1 {[%clk 0:09:59.8]} 5... e5
{[%clk 0:10:04.4]} 6. Nf3 {[%clk 0:10:00.8]} 6... e4 {[%clk 0:10:03.1]} 7. Nfd2
{[%clk 0:10:01.7]} 7... Be6 {[%clk 0:10:02.8]} 8. Be2 {[%clk 0:09:55.4]} 8...
Ne7 {[%clk 0:09:57]} 9. f3 {[%clk 0:09:45.1]} 9... exf3 {[%clk 0:09:54.7]} 10.
gxf3 {[%clk 0:09:32]} 10... Nf5 {[%clk 0:09:46]} 11. Bf2 {[%clk 0:09:31.7]}
11... Be7 {[%clk 0:09:47.4]} 12. c4 {[%clk 0:08:45.3]} 12... Qd8 {[%clk
0:09:00.2]} 13. cxd5 {[%clk 0:07:22.9]} 13... cxd5 {[%clk 0:08:59.3]} 14. Nc3
{[%clk 0:06:37.6]} 14... Bh4 {[%clk 0:08:51.1]} 15. Nf1 {[%clk 0:06:23.1]} 15...
Bxf2+ {[%clk 0:08:39.7]} 16. Kxf2 {[%clk 0:06:24.1]} 16... Qh4+ {[%clk
0:08:41.6]} 17. Ng3 {[%clk 0:06:24.7]} 17... Nc6 {[%clk 0:08:43.5]} 18. Nxd5
{[%clk 0:05:54.6]} 18... Bxd5 {[%clk 0:08:34.3]} 19. e4 {[%clk 0:05:49.8]} 19...
Bxe4 {[%clk 0:07:33.1]} 20. fxe4 {[%clk 0:05:47.6]} 20... Nxg3 {[%clk
0:07:34.6]} 21. hxg3 {[%clk 0:05:47.3]} 21... Qxe4 {[%clk 0:07:36.1]} 22. Bf3
{[%clk 0:05:42.4]} 22... Qxd4+ {[%clk 0:07:24.3]} 23. Kg2 {[%clk 0:05:43.3]}
23... O-O {[%clk 0:07:24.8]} 24. Rh4 {[%clk 0:05:41.3]} 24... Qf6 {[%clk
0:07:19.1]} 25. Rf4 {[%clk 0:05:41]} 25... Qg5 {[%clk 0:06:59.3]} 26. Qc3 {[%clk
0:05:34.8]} 26... Rac8 {[%clk 0:06:32.4]} 27. Re1 {[%clk 0:05:32.8]} 27... Ne7
{[%clk 0:05:41.8]} 28. Qb3 {[%clk 0:05:14.4]} 28... Ng6 {[%clk 0:05:27.6]} 29.
Rg4 {[%clk 0:05:09.1]} 29... Qf6 {[%clk 0:05:27.6]} 30. Rf1 {[%clk 0:04:50.6]}
30... Qf5 {[%clk 0:04:22.7]} 31. Bd1 {[%clk 0:04:21.8]} 31... Qe5 {[%clk
0:03:54.4]} 32. Rf2 {[%clk 0:04:08.1]} 32... Rc1 {[%clk 0:03:13.3]} 33. Be2
{[%clk 0:03:09.7]} 33... h5 {[%clk 0:02:58.1]} 34. Rb4 {[%clk 0:02:55.1]} 34...
b6 {[%clk 0:02:05.5]} 35. Qf3 {[%clk 0:02:51.6]} 35... Qd6 {[%clk 0:00:42.4]}
36. Rb5 {[%clk 0:02:24.2]} 36... Ne5 {[%clk 0:00:35.5]} 37. Qe4 {[%clk
0:02:07.3]} 37... Rc5 {[%clk 0:00:05.7]} 38. Rxc5 {[%clk 0:01:57.7]} 38... Qxc5
{[%clk 0:00:07.6]} 39. Rf5 {[%clk 0:01:56.9]} 39... Re8 {[%clk 0:00:08.6]} 40.
Rxh5 {[%clk 0:01:46.3]} 40... g6 {[%clk 0:00:06.9]} 41. Rh4 {[%clk 0:01:28.5]}
41... Qc6 {[%clk 0:00:08]} 42. Qxc6 {[%clk 0:01:26.5]} 42... Nxc6 {[%clk
0:00:09.9]} 43. Bb5 {[%clk 0:01:26.8]} 43... Re6 {[%clk 0:00:11.1]} 44. Rc4
{[%clk 0:01:25.8]} 44... Ne5 {[%clk 0:00:08.4]} 45. Rc7 {[%clk 0:01:23.5]} 45...
a5 {[%clk 0:00:09.6]} 46. Ba4 {[%clk 0:01:01.4]} 46... Kg7 {[%clk 0:00:08.8]}
47. Bb3 {[%clk 0:01:01.5]} 47... Rd6 {[%clk 0:00:10.2]} 48. g4 {[%clk
0:00:58.6]} 48... Kf6 {[%clk 0:00:05.6]} 49. Kg3 {[%clk 0:00:58.8]} 49... Rd3+
{[%clk 0:00:06.7]} 50. Kf4 {[%clk 0:00:58.6]} 50... Rd4+ {[%clk 0:00:07.7]} 51.
Ke3 {[%clk 0:00:59.2]} 51... Rxg4 {[%clk 0:00:08.1]} 52. Rb7 {[%clk 0:00:54.6]}
52... Rb4 {[%clk 0:00:09]} 53. Kd2 {[%clk 0:00:51.6]} 53... Rd4+ {[%clk
0:00:10.2]} 54. Kc3 {[%clk 0:00:51.6]} 54... Rd6 {[%clk 0:00:12.1]} 55. a4
{[%clk 0:00:45.4]} 55... g5 {[%clk 0:00:12.7]} 56. Rb8 {[%clk 0:00:46.3]} 56...
g4 {[%clk 0:00:08.7]} 57. Kc2 {[%clk 0:00:42.6]} 57... Kf5 {[%clk 0:00:08.1]}
58. Rf8 {[%clk 0:00:38]} 58... Kf4 {[%clk 0:00:06.8]} 59. Re8 {[%clk 0:00:30.8]}
59... g3 {[%clk 0:00:07.4]} 60. Rg8 {[%clk 0:00:27.6]} 60... Rg6 {[%clk
0:00:08.3]} 61. Rf8 {[%clk 0:00:19.1]} 61... g2 {[%clk 0:00:08.7]} 62. Bxf7
{[%clk 0:00:20.2]} 62... Nxf7 {[%clk 0:00:09.5]} 63. Rxf7+ {[%clk 0:00:19.8]}
63... Kg3 {[%clk 0:00:10.7]} 0-1

[Event "GrandPrix_29.05"]
[Site "Chess.com"]
[Date "2020.05.29"]
[Round "8"]
[White "ChessQueen"]
[Black "MAS_1704"]
[Result "1-0"]
[WhiteElo "2105"]
[BlackElo "2067"]
[TimeControl "600+2"]
[EndTime "13:05:33 PDT"]
[Termination "ChessQueen won on time"]

1. e4 {[%clk 0:10:01.9]} 1... g6 {[%clk 0:09:51.6]} 2. d4 {[%clk 0:10:01.9]}
2... Bg7 {[%clk 0:09:50.8]} 3. Nc3 {[%clk 0:10:01.9]} 3... d6 {[%clk 0:09:50.5]}
4. h4 {[%clk 0:10:01.8]} 4... h5 {[%clk 0:09:49.8]} 5. Bg5 {[%clk 0:09:53.2]}
5... c6 {[%clk 0:09:49.2]} 6. a4 {[%clk 0:09:49.3]} 6... Qb6 {[%clk 0:09:43.9]}
7. Nge2 {[%clk 0:09:27.7]} 7... a5 {[%clk 0:09:17.5]} 8. Be3 {[%clk 0:08:33.3]}
8... Nf6 {[%clk 0:09:09.6]} 9. f3 {[%clk 0:08:31.8]} 9... O-O {[%clk 0:09:03.9]}
10. Qc1 {[%clk 0:08:27.5]} 10... Re8 {[%clk 0:08:55.8]} 11. Nf4 {[%clk
0:07:42.5]} 11... Qc7 {[%clk 0:08:47.9]} 12. Bc4 {[%clk 0:07:35.3]} 12... e6
{[%clk 0:08:05.3]} 13. Bb3 {[%clk 0:06:54.9]} 13... Kh7 {[%clk 0:07:24.8]} 14.
Qd2 {[%clk 0:06:51.8]} 14... d5 {[%clk 0:06:54.6]} 15. e5 {[%clk 0:06:25.9]}
15... Nfd7 {[%clk 0:06:52.4]} 16. g4 {[%clk 0:06:26.6]} 16... hxg4 {[%clk
0:06:31.7]} 17. h5 {[%clk 0:05:51]} 17... g5 {[%clk 0:06:31.3]} 18. h6 {[%clk
0:05:18.8]} 18... Bh8 {[%clk 0:06:20.7]} 19. Qd3+ {[%clk 0:05:06.1]} 19... Kg8
{[%clk 0:06:19.1]} 20. h7+ {[%clk 0:05:01.3]} 20... Kf8 {[%clk 0:06:14.3]} 21.
Ng6+ {[%clk 0:04:58.7]} 21... fxg6 {[%clk 0:05:42.6]} 22. Qxg6 {[%clk
0:04:59.1]} 22... Nxe5 {[%clk 0:05:28]} 23. Qg8+ {[%clk 0:04:07.8]} 23... Ke7
{[%clk 0:05:25.9]} 24. dxe5 {[%clk 0:03:16]} 24... Qxe5 {[%clk 0:05:22.7]} 25.
Kd2 {[%clk 0:03:07.4]} 25... Qg7 {[%clk 0:04:56.3]} 26. Bxg5+ {[%clk 0:02:57.2]}
26... Kd7 {[%clk 0:04:53.4]} 27. Qxg7+ {[%clk 0:02:53.5]} 27... Bxg7 {[%clk
0:04:53.2]} 28. fxg4 {[%clk 0:02:52.9]} 28... Rh8 {[%clk 0:04:04]} 29. Raf1
{[%clk 0:02:48.5]} 29... Ke8 {[%clk 0:04:03.6]} 30. Bf6 {[%clk 0:02:42.9]} 30...
Bxf6 {[%clk 0:04:00.9]} 31. Rxf6 {[%clk 0:02:44.8]} 31... Nd7 {[%clk 0:03:58.2]}
32. Rxe6+ {[%clk 0:02:39.8]} 32... Kf7 {[%clk 0:03:54.2]} 33. Reh6 {[%clk
0:02:36.4]} 33... Ne5 {[%clk 0:03:26.2]} 34. Ne4 {[%clk 0:02:00]} 34... Nxg4
{[%clk 0:02:45]} 35. Nd6+ {[%clk 0:01:45.4]} 35... Ke7 {[%clk 0:02:44.9]} 36.
Nxc8+ {[%clk 0:01:43.5]} 36... Raxc8 {[%clk 0:02:44.7]} 37. R6h4 {[%clk
0:01:41.2]} 37... Nf6 {[%clk 0:02:33.5]} 38. c3 {[%clk 0:01:39.9]} 38... Rcf8
{[%clk 0:02:18.4]} 39. Bc2 {[%clk 0:01:38.5]} 39... Rf7 {[%clk 0:02:13.5]} 40.
Kc1 {[%clk 0:01:25.5]} 40... Kf8 {[%clk 0:01:22.9]} 41. b3 {[%clk 0:01:24.3]}
41... Ne4 {[%clk 0:01:05]} 42. Bxe4 {[%clk 0:01:15.7]} 42... dxe4 {[%clk
0:01:04]} 43. Kd2 {[%clk 0:01:16.7]} 43... Rf2+ {[%clk 0:01:00.5]} 44. Ke3
{[%clk 0:01:16.1]} 44... Rf3+ {[%clk 0:01:00.9]} 45. Kxe4 {[%clk 0:00:56.1]}
45... Rxc3 {[%clk 0:01:00.3]} 46. R1h3 {[%clk 0:00:42.2]} 46... Rxh3 {[%clk
0:00:46.7]} 47. Rxh3 {[%clk 0:00:42.9]} 47... b5 {[%clk 0:00:39.9]} 48. Kd4
{[%clk 0:00:39.7]} 48... bxa4 {[%clk 0:00:13.8]} 49. bxa4 {[%clk 0:00:39.8]}
49... Ke7 {[%clk 0:00:12.6]} 50. Kc5 {[%clk 0:00:40.8]} 50... Kd7 {[%clk
0:00:12.9]} 51. Kb6 {[%clk 0:00:38.3]} 51... Kd6 {[%clk 0:00:12.1]} 52. Kxa5
{[%clk 0:00:35.2]} 52... c5 {[%clk 0:00:08.3]} 53. Kb5 {[%clk 0:00:34.4]} 53...
Kd5 {[%clk 0:00:08.8]} 54. Rh5+ {[%clk 0:00:30.1]} 54... Kd4 {[%clk 0:00:09.1]}
55. Rh4+ {[%clk 0:00:31.1]} 55... Kd5 {[%clk 0:00:08.2]} 56. a5 {[%clk
0:00:28.2]} 56... c4 {[%clk 0:00:06.5]} 57. a6 {[%clk 0:00:21.1]} 57... c3
{[%clk 0:00:05.4]} 58. a7 {[%clk 0:00:11.4]} 58... c2 {[%clk 0:00:02.8]} 59. Rc4
{[%clk 0:00:11]} 1-0

[Event "GrandPrix_29.05"]
[Site "Chess.com"]
[Date "2020.05.29"]
[Round "8"]
[White "ehrenfeld"]
[Black "FCLitras"]
[Result "0-1"]
[WhiteElo "1941"]
[BlackElo "1961"]
[TimeControl "600+2"]
[EndTime "13:05:34 PDT"]
[Termination "FCLitras won on time"]

1. e4 {[%clk 0:10:01.9]} 1... c6 {[%clk 0:09:59.8]} 2. d4 {[%clk 0:10:01.4]}
2... d5 {[%clk 0:10:00.5]} 3. exd5 {[%clk 0:10:02.2]} 3... cxd5 {[%clk
0:10:01.4]} 4. Bd3 {[%clk 0:10:03.8]} 4... Nc6 {[%clk 0:10:02.2]} 5. c3 {[%clk
0:10:04.9]} 5... Qc7 {[%clk 0:10:03.4]} 6. Ne2 {[%clk 0:10:05.1]} 6... e5 {[%clk
0:10:02.2]} 7. dxe5 {[%clk 0:10:04.5]} 7... Nxe5 {[%clk 0:10:02.7]} 8. Bb5+
{[%clk 0:10:05.1]} 8... Bd7 {[%clk 0:09:58.3]} 9. Bxd7+ {[%clk 0:10:05.3]} 9...
Qxd7 {[%clk 0:09:58.5]} 10. O-O {[%clk 0:10:04.9]} 10... Nf6 {[%clk 0:09:50]}
11. Nd4 {[%clk 0:08:57.1]} 11... Be7 {[%clk 0:09:48.2]} 12. Nd2 {[%clk
0:08:56.3]} 12... O-O {[%clk 0:09:48.2]} 13. N2f3 {[%clk 0:08:56]} 13... Nc4
{[%clk 0:09:49.2]} 14. Re1 {[%clk 0:08:33]} 14... Ne4 {[%clk 0:09:39.2]} 15. Qd3
{[%clk 0:08:24]} 15... Rac8 {[%clk 0:09:32.1]} 16. Re2 {[%clk 0:07:07.4]} 16...
Bf6 {[%clk 0:09:28.9]} 17. Bf4 {[%clk 0:07:01]} 17... Rfe8 {[%clk 0:09:07.6]}
18. Rae1 {[%clk 0:06:58.1]} 18... a6 {[%clk 0:09:01.4]} 19. Bc1 {[%clk
0:06:49.1]} 19... b5 {[%clk 0:08:46.2]} 20. Rd1 {[%clk 0:06:45.5]} 20... g6
{[%clk 0:08:21.6]} 21. Ree1 {[%clk 0:06:45.1]} 21... Nc5 {[%clk 0:07:51.5]} 22.
Qc2 {[%clk 0:06:39.8]} 22... Rxe1+ {[%clk 0:07:49.4]} 23. Rxe1 {[%clk
0:06:40.3]} 23... Re8 {[%clk 0:07:50.4]} 24. Rxe8+ {[%clk 0:06:37.5]} 24... Qxe8
{[%clk 0:07:51.2]} 25. Kf1 {[%clk 0:06:25.8]} 25... Qe4 {[%clk 0:07:29]} 26. b3
{[%clk 0:05:07.8]} 26... Nd6 {[%clk 0:06:38.1]} 27. Ba3 {[%clk 0:04:32.9]} 27...
Qxc2 {[%clk 0:06:31.2]} 28. Nxc2 {[%clk 0:04:33.5]} 28... Nde4 {[%clk
0:06:32.1]} 29. Ncd4 {[%clk 0:04:26.5]} 29... Ne6 {[%clk 0:06:24.8]} 30. Bb2
{[%clk 0:04:19.6]} 30... Nxd4 {[%clk 0:06:17]} 31. cxd4 {[%clk 0:03:47.2]} 31...
Kf8 {[%clk 0:06:14.3]} 32. Ke2 {[%clk 0:03:46.3]} 32... Ke8 {[%clk 0:06:14.2]}
33. Ne5 {[%clk 0:03:34.1]} 33... h5 {[%clk 0:06:10.4]} 34. f3 {[%clk 0:03:34.4]}
34... Nd6 {[%clk 0:06:11]} 35. Kd3 {[%clk 0:03:32.9]} 35... Nf5 {[%clk
0:06:10.9]} 36. g3 {[%clk 0:03:23.5]} 36... Ke7 {[%clk 0:05:53]} 37. Nc6+ {[%clk
0:03:15.9]} 37... Kd6 {[%clk 0:05:52.1]} 38. Ne5 {[%clk 0:02:51.8]} 38... Ke6
{[%clk 0:05:09.6]} 39. Nc6 {[%clk 0:02:50.4]} 39... Be7 {[%clk 0:04:52.2]} 40.
g4 {[%clk 0:02:31.7]} 40... Nh6 {[%clk 0:04:25.2]} 41. h3 {[%clk 0:02:26]} 41...
Bd6 {[%clk 0:04:25.9]} 42. Ne5 {[%clk 0:02:20.9]} 42... Ng8 {[%clk 0:04:21.5]}
43. Nc6 {[%clk 0:02:02.6]} 43... Nf6 {[%clk 0:04:17]} 44. Bc3 {[%clk 0:01:50.3]}
44... Nh7 {[%clk 0:04:14.9]} 45. Bd2 {[%clk 0:01:47.8]} 45... Kd7 {[%clk
0:04:00.7]} 46. Ne5+ {[%clk 0:01:43.6]} 46... Ke6 {[%clk 0:03:57.5]} 47. Nc6
{[%clk 0:01:44.1]} 47... Nf8 {[%clk 0:03:55.6]} 48. Bb4 {[%clk 0:01:25.9]} 48...
Nh7 {[%clk 0:03:41.5]} 49. Bxd6 {[%clk 0:00:54.3]} 49... Kxd6 {[%clk 0:03:41.5]}
50. Ne5 {[%clk 0:00:55.8]} 50... Ke6 {[%clk 0:03:39.1]} 51. Ke3 {[%clk
0:00:50.2]} 51... Nf8 {[%clk 0:03:25.3]} 52. Nd3 {[%clk 0:00:45.3]} 52... hxg4
{[%clk 0:03:25.1]} 53. hxg4 {[%clk 0:00:45.8]} 53... Kd6 {[%clk 0:03:21.3]} 54.
Nc5 {[%clk 0:00:45.7]} 54... a5 {[%clk 0:02:54]} 55. Nb7+ {[%clk 0:00:45.1]}
55... Kc7 {[%clk 0:02:55]} 56. Nxa5 {[%clk 0:00:44.9]} 56... b4 {[%clk
0:02:56.3]} 57. Kd3 {[%clk 0:00:18.8]} 57... Kb6 {[%clk 0:02:56.9]} 58. Nc4+
{[%clk 0:00:19.4]} 58... dxc4+ {[%clk 0:02:57.4]} 59. Kxc4 {[%clk 0:00:14.6]}
59... Ne6 {[%clk 0:02:56.7]} 60. d5 {[%clk 0:00:14.8]} 60... Ng5 {[%clk
0:02:57.6]} 61. f4 {[%clk 0:00:11.8]} 61... Nh3 {[%clk 0:02:58.4]} 62. f5 {[%clk
0:00:12.4]} 62... g5 {[%clk 0:02:42.8]} 63. Kxb4 {[%clk 0:00:13.3]} 63... Nf2
{[%clk 0:02:43.7]} 64. a4 {[%clk 0:00:14.5]} 64... Nxg4 {[%clk 0:02:44.4]} 65.
a5+ {[%clk 0:00:15.9]} 65... Kc7 {[%clk 0:02:42.7]} 66. Kc5 {[%clk 0:00:15.3]}
66... Ne5 {[%clk 0:02:37.5]} 67. a6 {[%clk 0:00:12.5]} 67... Nd7+ {[%clk
0:02:37.5]} 68. Kd4 {[%clk 0:00:13.3]} 68... f6 {[%clk 0:02:33.3]} 69. b4 {[%clk
0:00:08.3]} 69... Kd6 {[%clk 0:02:28.6]} 70. b5 {[%clk 0:00:06.7]} 70... Nb6
{[%clk 0:02:29.2]} 71. a7 {[%clk 0:00:04.3]} 71... g4 {[%clk 0:02:26.4]} 72. Ke4
{[%clk 0:00:04.9]} 72... g3 {[%clk 0:02:26.6]} 73. Kf3 {[%clk 0:00:05.9]} 73...
Kxd5 {[%clk 0:02:21.9]} 74. Kxg3 {[%clk 0:00:06.8]} 74... Ke5 {[%clk 0:02:22]}
75. Kg4 {[%clk 0:00:07.6]} 75... Ke4 {[%clk 0:02:22.9]} 76. Kg3 {[%clk
0:00:06.4]} 76... Kxf5 {[%clk 0:02:24]} 77. Kf3 {[%clk 0:00:07.1]} 77... Ke5
{[%clk 0:02:25.1]} 78. Ke3 {[%clk 0:00:07.3]} 78... Na8 {[%clk 0:02:04.6]} 79.
Kf3 {[%clk 0:00:07.3]} 79... Kf5 {[%clk 0:01:59.2]} 80. Ke3 {[%clk 0:00:07.8]}
80... Kg4 {[%clk 0:02:00]} 81. Kf2 {[%clk 0:00:08.7]} 81... Kf4 {[%clk
0:02:00.5]} 82. Kg2 {[%clk 0:00:05.1]} 82... Ke3 {[%clk 0:02:00.1]} 83. Kf1
{[%clk 0:00:05.7]} 83... f5 {[%clk 0:01:57.6]} 84. Ke1 {[%clk 0:00:06.4]} 84...
f4 {[%clk 0:01:56.4]} 85. Kf1 {[%clk 0:00:07.4]} 85... Kf3 {[%clk 0:01:57.6]}
0-1

[Event "GrandPrix_29.05"]
[Site "Chess.com"]
[Date "2020.05.29"]
[Round "8"]
[White "Sam_ChessMood"]
[Black "Bosiocic"]
[Result "0-1"]
[WhiteElo "2578"]
[BlackElo "2755"]
[TimeControl "600+2"]
[EndTime "13:05:38 PDT"]
[Termination "Bosiocic won by resignation"]

1. e4 {[%clk 0:10:01.9]} 1... d6 {[%clk 0:10:00.8]} 2. d4 {[%clk 0:10:01.8]}
2... Nf6 {[%clk 0:10:01.8]} 3. Nc3 {[%clk 0:10:02.6]} 3... e5 {[%clk 0:10:02.9]}
4. Nf3 {[%clk 0:09:57.3]} 4... Nbd7 {[%clk 0:10:03.5]} 5. Bc4 {[%clk 0:09:58]}
5... Be7 {[%clk 0:10:03.7]} 6. O-O {[%clk 0:09:58.5]} 6... O-O {[%clk
0:10:04.3]} 7. a4 {[%clk 0:09:56.7]} 7... a5 {[%clk 0:10:05.2]} 8. Re1 {[%clk
0:09:55.5]} 8... c6 {[%clk 0:10:05.9]} 9. h3 {[%clk 0:09:42.8]} 9... Nb6 {[%clk
0:10:05.7]} 10. Bb3 {[%clk 0:09:20.9]} 10... Nfd7 {[%clk 0:10:04.5]} 11. Be3
{[%clk 0:08:44]} 11... exd4 {[%clk 0:10:03.6]} 12. Nxd4 {[%clk 0:07:58.9]} 12...
Nc5 {[%clk 0:10:01.5]} 13. Qf3 {[%clk 0:07:57.1]} 13... Nxb3 {[%clk 0:10:02.2]}
14. cxb3 {[%clk 0:07:57.3]} 14... Nd7 {[%clk 0:10:03]} 15. Rad1 {[%clk
0:07:48.9]} 15... Ne5 {[%clk 0:10:02.7]} 16. Qe2 {[%clk 0:07:17.5]} 16... f6
{[%clk 0:10:00.3]} 17. f4 {[%clk 0:07:01.9]} 17... Nf7 {[%clk 0:10:01]} 18. Qf3
{[%clk 0:06:59.8]} 18... Bd7 {[%clk 0:09:55.7]} 19. Kh1 {[%clk 0:06:57.6]} 19...
Rc8 {[%clk 0:09:51.5]} 20. Bg1 {[%clk 0:06:54.9]} 20... Qc7 {[%clk 0:09:48.7]}
21. Rc1 {[%clk 0:06:03.4]} 21... Qd8 {[%clk 0:09:12.4]} 22. Rcd1 {[%clk
0:06:00.9]} 22... Re8 {[%clk 0:09:08.6]} 23. Nce2 {[%clk 0:05:41.8]} 23... Bf8
{[%clk 0:08:22.1]} 24. Ng3 {[%clk 0:05:36.5]} 24... Qc7 {[%clk 0:08:09.8]} 25.
Nh5 {[%clk 0:04:55.8]} 25... Kh8 {[%clk 0:07:31.9]} 26. Rc1 {[%clk 0:04:22]}
26... b6 {[%clk 0:07:03.6]} 27. Rcd1 {[%clk 0:04:08.8]} 27... Qb7 {[%clk
0:07:00.4]} 28. Ng3 {[%clk 0:04:09.6]} 28... Rcd8 {[%clk 0:06:05.4]} 29. Ndf5
{[%clk 0:04:00.6]} 29... Be6 {[%clk 0:04:54.9]} 30. Nd4 {[%clk 0:03:56.8]} 30...
Bd7 {[%clk 0:04:17.5]} 31. Ndf5 {[%clk 0:03:57.3]} 31... c5 {[%clk 0:04:01.6]}
32. Ne3 {[%clk 0:03:51]} 32... b5 {[%clk 0:04:01.1]} 33. axb5 {[%clk 0:03:40]}
33... Bxb5 {[%clk 0:04:00.7]} 34. Nd5 {[%clk 0:03:37]} 34... Bc6 {[%clk
0:04:01.3]} 35. Re3 {[%clk 0:02:37.9]} 35... Rb8 {[%clk 0:03:59.4]} 36. Red3
{[%clk 0:01:52.2]} 36... Nh6 {[%clk 0:03:31.5]} 37. Ra1 {[%clk 0:01:12.6]} 37...
a4 {[%clk 0:03:07.5]} 38. bxa4 {[%clk 0:01:13.2]} 38... Qxb2 {[%clk 0:03:05.8]}
39. Qd1 {[%clk 0:01:14.2]} 39... Qb7 {[%clk 0:01:59.2]} 40. a5 {[%clk
0:01:10.3]} 40... f5 {[%clk 0:01:52.1]} 41. exf5 {[%clk 0:01:01.5]} 41... Qf7
{[%clk 0:01:51.8]} 42. f6 {[%clk 0:00:45.5]} 42... Qg6 {[%clk 0:01:38.3]} 43. f5
{[%clk 0:00:36.1]} 43... Nxf5 {[%clk 0:01:29.5]} 44. Nxf5 {[%clk 0:00:36.8]}
44... Qxf5 {[%clk 0:01:29.4]} 45. a6 {[%clk 0:00:29.8]} 45... c4 {[%clk
0:01:26.4]} 46. Rd4 {[%clk 0:00:25.2]} 46... Rb5 {[%clk 0:01:23]} 47. Nf4 {[%clk
0:00:08.7]} 47... Rc5 {[%clk 0:01:09.3]} 48. f7 {[%clk 0:00:09.6]} 48... Qxf7
{[%clk 0:01:00.8]} 49. a7 {[%clk 0:00:10.3]} 49... Rf5 {[%clk 0:00:51]} 50. Qd2
{[%clk 0:00:06.9]} 50... Ba8 {[%clk 0:00:42.9]} 51. Bh2 {[%clk 0:00:05.1]} 51...
g5 {[%clk 0:00:39.6]} 52. Qc3 {[%clk 0:00:06.2]} 52... Bg7 {[%clk 0:00:36.5]}
53. Qxc4 {[%clk 0:00:07.7]} 53... Qxc4 {[%clk 0:00:36]} 54. Rxc4 {[%clk
0:00:09.1]} 54... Bxa1 {[%clk 0:00:34.5]} 55. Nd3 {[%clk 0:00:10.3]} 55... Rf1+
{[%clk 0:00:22.8]} 56. Bg1 {[%clk 0:00:11.2]} 56... Be5 {[%clk 0:00:22.3]} 57.
Rb4 {[%clk 0:00:08.1]} 57... Kg8 {[%clk 0:00:17.5]} 58. Rb8 {[%clk 0:00:08.3]}
58... Rff8 {[%clk 0:00:17.7]} 59. Rb6 {[%clk 0:00:08.1]} 59... Bg3 {[%clk
0:00:17.3]} 60. Rb3 {[%clk 0:00:05.8]} 60... Re2 {[%clk 0:00:16.4]} 61. Ne1
{[%clk 0:00:05.4]} 61... Bxe1 {[%clk 0:00:16.8]} 62. Rb8 {[%clk 0:00:05.4]}
62... Bxg2+ {[%clk 0:00:17.1]} 63. Kh2 {[%clk 0:00:06.8]} 63... Ba8+ {[%clk
0:00:18]} 0-1

[Event "GrandPrix_29.05"]
[Site "Chess.com"]
[Date "2020.05.29"]
[Round "8"]
[White "kpio91"]
[Black "DanielDardha2005"]
[Result "0-1"]
[WhiteElo "2517"]
[BlackElo "2491"]
[TimeControl "600+2"]
[EndTime "13:05:55 PDT"]
[Termination "DanielDardha2005 won on time"]

1. e4 {[%clk 0:10:01.9]} 1... c5 {[%clk 0:09:59.7]} 2. Nf3 {[%clk 0:10:00.7]}
2... Nc6 {[%clk 0:10:00.3]} 3. Bb5 {[%clk 0:10:00.7]} 3... Nf6 {[%clk
0:10:01.1]} 4. Nc3 {[%clk 0:10:00.7]} 4... g6 {[%clk 0:10:01.9]} 5. O-O {[%clk
0:09:57.8]} 5... Bg7 {[%clk 0:10:03]} 6. e5 {[%clk 0:09:47.8]} 6... Ng4 {[%clk
0:10:03.7]} 7. Bxc6 {[%clk 0:09:48.8]} 7... dxc6 {[%clk 0:10:04.4]} 8. Re1
{[%clk 0:09:49.8]} 8... O-O {[%clk 0:10:05.6]} 9. d3 {[%clk 0:09:48.9]} 9... Nh6
{[%clk 0:10:05]} 10. Bf4 {[%clk 0:09:45.2]} 10... Nf5 {[%clk 0:09:58.6]} 11. Ne4
{[%clk 0:09:34.6]} 11... b6 {[%clk 0:09:58.3]} 12. Qd2 {[%clk 0:09:33.3]} 12...
Qd5 {[%clk 0:09:59.3]} 13. b3 {[%clk 0:09:03.7]} 13... h6 {[%clk 0:09:55.2]} 14.
h3 {[%clk 0:08:38.3]} 14... g5 {[%clk 0:09:44]} 15. Bh2 {[%clk 0:08:38.8]} 15...
Nd4 {[%clk 0:09:45.2]} 16. Nxd4 {[%clk 0:08:39.3]} 16... cxd4 {[%clk 0:09:47.1]}
17. f4 {[%clk 0:08:40.2]} 17... f5 {[%clk 0:09:33]} 18. exf6 {[%clk 0:08:28.4]}
18... exf6 {[%clk 0:09:33.1]} 19. fxg5 {[%clk 0:08:22.4]} 19... fxg5 {[%clk
0:09:26.5]} 20. Nd6 {[%clk 0:08:11.4]} 20... Be6 {[%clk 0:08:56.4]} 21. Re2
{[%clk 0:07:24.5]} 21... Kh8 {[%clk 0:08:22.1]} 22. Rae1 {[%clk 0:07:20.6]}
22... Bg8 {[%clk 0:08:23.1]} 23. Re7 {[%clk 0:06:57.4]} 23... Rad8 {[%clk
0:07:59.5]} 24. Ne4 {[%clk 0:06:15.3]} 24... Rd7 {[%clk 0:07:56.3]} 25. Ng3
{[%clk 0:06:03.4]} 25... Rxe7 {[%clk 0:07:43.6]} 26. Rxe7 {[%clk 0:06:03.6]}
26... Rf7 {[%clk 0:07:01.7]} 27. Re4 {[%clk 0:05:28.9]} 27... Bh7 {[%clk
0:04:55.3]} 28. Re8+ {[%clk 0:05:23.1]} 28... Rf8 {[%clk 0:04:56.7]} 29. Rxf8+
{[%clk 0:05:24.2]} 29... Bxf8 {[%clk 0:04:57.5]} 30. Nh5 {[%clk 0:05:26.1]}
30... Bg6 {[%clk 0:04:28.5]} 31. Qf2 {[%clk 0:05:20.3]} 31... Be7 {[%clk
0:04:29.2]} 32. Qe2 {[%clk 0:04:57.6]} 32... Qf7 {[%clk 0:04:18]} 33. Qe5+
{[%clk 0:04:11.8]} 33... Kh7 {[%clk 0:04:17.8]} 34. Ng3 {[%clk 0:04:13.4]} 34...
Bf6 {[%clk 0:02:10.1]} 35. Qd6 {[%clk 0:04:08.9]} 35... c5 {[%clk 0:02:01.6]}
36. Ne4 {[%clk 0:03:35.3]} 36... Bxe4 {[%clk 0:01:25.5]} 37. dxe4 {[%clk
0:03:35]} 37... d3 {[%clk 0:01:24.8]} 38. Qxd3 {[%clk 0:03:19.6]} 38... Bd4+
{[%clk 0:01:25.7]} 39. Kh1 {[%clk 0:03:20.8]} 39... Qf2 {[%clk 0:01:27.2]} 40.
Qd1 {[%clk 0:01:49]} 40... Qe3 {[%clk 0:01:27.3]} 41. e5 {[%clk 0:01:16.5]}
41... Kg6 {[%clk 0:01:17.7]} 42. a4 {[%clk 0:01:09]} 42... Bxe5 {[%clk
0:01:17.3]} 43. Bg1 {[%clk 0:01:09]} 43... Qe4 {[%clk 0:01:15.3]} 44. Qd7 {[%clk
0:00:50.3]} 44... Bd4 {[%clk 0:01:15.4]} 45. Qd6+ {[%clk 0:00:44.3]} 45... Kg7
{[%clk 0:01:03.5]} 46. Qc7+ {[%clk 0:00:29.3]} 46... Kg6 {[%clk 0:01:01.6]} 47.
Qd6+ {[%clk 0:00:15.6]} 47... Kh5 {[%clk 0:01:02]} 48. Bxd4 {[%clk 0:00:13.5]}
48... cxd4 {[%clk 0:00:58.2]} 49. Qf6 {[%clk 0:00:05.2]} 49... Qxc2 {[%clk
0:00:41.8]} 50. Qxd4 {[%clk 0:00:02.8]} 50... Qxb3 {[%clk 0:00:35.5]} 51. Qg4+
{[%clk 0:00:02.8]} 51... Kg6 {[%clk 0:00:36.2]} 52. Qe4+ {[%clk 0:00:04.4]}
52... Kf6 {[%clk 0:00:33.8]} 53. Qd4+ {[%clk 0:00:05.7]} 53... Ke6 {[%clk
0:00:28.8]} 54. Qe4+ {[%clk 0:00:07.1]} 54... Kd6 {[%clk 0:00:29.5]} 55. Qd4+
{[%clk 0:00:06.3]} 55... Qd5 {[%clk 0:00:30.5]} 56. Qf6+ {[%clk 0:00:07.5]}
56... Qe6 {[%clk 0:00:32.1]} 57. Qd8+ {[%clk 0:00:07.8]} 57... Kc5 {[%clk
0:00:19.1]} 58. Qc7+ {[%clk 0:00:08.4]} 58... Kb4 {[%clk 0:00:18.8]} 59. Qxa7
{[%clk 0:00:09.3]} 59... Qe1+ {[%clk 0:00:19.1]} 60. Kh2 {[%clk 0:00:10.5]}
60... Qe5+ {[%clk 0:00:20.5]} 61. Kh1 {[%clk 0:00:08.7]} 61... Qa5 {[%clk
0:00:20.5]} 62. Qg7 {[%clk 0:00:08.6]} 62... Kxa4 {[%clk 0:00:19.9]} 63. Qxh6
{[%clk 0:00:09.2]} 63... Qe1+ {[%clk 0:00:21]} 64. Kh2 {[%clk 0:00:09.9]} 64...
Qe5+ {[%clk 0:00:16]} 65. Kh1 {[%clk 0:00:08.9]} 65... b5 {[%clk 0:00:17.4]} 66.
h4 {[%clk 0:00:07.9]} 66... Qe1+ {[%clk 0:00:16.5]} 0-1